Cogmind - Beta 13 @@@ ROGUE MODE // 2024.07.16 @ 10:13:44 Player: Jazzer Result: Self-destructed Performance ------------- Evolutions (3) 1500 Regions Visited (6) 1200 Robots Destroyed (87) 435 Value Destroyed (2897) 2897 Prototype IDs (6) 120 Alien Tech Used (0) 0 Bonus (469) 469 TOTAL SCORE: 6621 Bonus ------- High Alert Combat Kills 52 Follower Combat Kills 449 Friendly Fire -32 Cogmind --------- Core Integrity 520/700 Matter 192/300 Energy 63/100 System Corruption 7% Temperature Cool (0) Movement Treading (247) Ox1 Location -7/Factory Parts ------- > --- POWER (1) -------- (None) > --- PROPULSION (5) --- Armored Treads Armored Treads Armored Treads Medium Treads Wheel > --- UTILITY (5) ------ Huge Storage Unit Improved Signal Interpreter Long-range Tractor Beam > --- WEAPON (2) ------- Heavy Particle Cannon Assault Cannon > --- INVENTORY (25) --- Reinforced Ion Engine Armored Treads Improved Cooling System Compact Battery (18) Large Matter Pod (0) Structural Scanner Improved Sensor Array Matter Filter Particle Charger Improved Medium Armor Plating Trap Extractor (4/4 Proton Bomb) Thief Drone Bay (3/3) Heavy Particle Cannon Light Cannon Rocket Array Rocket Array Heavy Hammer Peak State ------------ > --- POWER ------------ Light Nuclear Core > --- PROPULSION ------- Armored Treads Advanced Treads Medium Treads Medium Treads Medium Treads > --- UTILITY ---------- Improved Cooling System Huge Storage Unit Heavy Armor Plating Long-range Tractor Beam > --- WEAPON ----------- Rocket Array Rocket Array > --- INVENTORY -------- Reinforced Ion Engine Armored Treads Armored Treads Armored Treads Medium Treads Improved Cooling System Compact Battery Large Matter Pod Structural Scanner Improved Sensor Array Improved Signal Interpreter Particle Charger Heavy Armor Plating Improved Medium Armor Plating Improved Medium Armor Plating Improved Shield Generator Trap Extractor Thief Drone Bay Advanced Beam Cannon Heavy Particle Cannon Heavy Particle Cannon Light Cannon Assault Cannon Heavy Hammer [Rating: 52] Favorites ----------- Power Light Deuterium Engine Engine Light Deuterium Engine Power Core Light Nuclear Core Propulsion Light Treads Treads Light Treads Wheel Wheel Utility Huge Storage Unit Device Improved Cooling System Storage Huge Storage Unit Processor Improved Signal Interpreter Protection Heavy Armor Plating Weapon Medium Laser Energy Gun Medium Laser Energy Cannon Advanced Beam Cannon Ballistic Gun Assault Rifle Ballistic Cannon Assault Cannon Launcher Grenade Launcher Impact Weapon Heavy Hammer Special Melee Weapon Datajack Build | -11 -10 -10 -10 -9 -8 -7 ------- Run | Yrd Mat Min Exi Min Mat Fac Slots Evolved 6 | . . . . . 4 2 Power . | . . . . . . . Propulsion 3 | . . . . . 2 1 Utility 3 | . . . . . 2 1 Weapon . | . . . . . . . Parts Attached 130 | 7 24 9 . 4 39 47 Power 9 | 1 3 1 . . 2 2 Engine 5 | 1 1 1 . . 1 1 Core 4 | . 2 . . . 1 1 Reactor . | . . . . . . . Propulsion 22 | 2 3 2 . 1 8 6 Treads 21 | 2 3 2 . 1 8 5 Leg . | . . . . . . . Wheel 1 | . . . . . . 1 Hover . | . . . . . . . Flight . | . . . . . . . Utility 61 | 2 12 2 . 2 20 23 Device 35 | 1 6 2 . 2 11 13 Storage 5 | 1 3 . . . 1 . Processor 2 | . . . . . . 2 Hackware . | . . . . . . . Protection 19 | . 3 . . . 8 8 Artifact . | . . . . . . . Weapon 38 | 2 6 4 . 1 9 16 Energy Gun 5 | . 1 . . 1 3 . Energy Cannon 5 | . . . . . 1 4 Ballistic Gun 5 | 2 2 1 . . . . Ballistic Cannon 6 | . . . . . 2 4 Launcher 9 | . 1 2 . . 1 5 Special Weapon . | . . . . . . . Impact Weapon 6 | . . 1 . . 2 3 Slashing Weapon . | . . . . . . . Piercing Weapon . | . . . . . . . Special Melee Weapon 2 | . 2 . . . . . Unidentified Prototypes 3 | . . . . 1 1 1 Parts Lost 19 | . 4 2 . . 4 9 Power 3 | . 1 . . . 1 1 Propulsion 5 | . . 2 . . . 3 Utility 9 | . 1 . . . 3 5 Weapon 2 | . 2 . . . . . Highest Loss Streak 6 | . 2 2 . . 3 6 To Critical Strikes . | . . . . . . . Average Slot Usage (%) 95 | . 94 99 85 99 97 91 Engine 7 | . 9 9 14 14 4 1 Core 3 | . 4 4 . . 4 4 Treads 31 | . 27 27 28 28 36 37 Device 12 | . 9 14 14 14 12 12 Storage 11 | . 14 14 14 14 9 7 Protection 5 | . 2 . . . 11 8 Energy Gun 6 | . 2 14 . 13 7 . Energy Cannon 2 | . . . . . 5 6 Ballistic Gun 5 | . 22 3 . . . . Ballistic Cannon 1 | . . . . . 3 6 Launcher 1 | . . 6 . . . . Impact Weapon 3 | . . 3 14 14 1 1 Naked Turns . | . . . . . . . Heaviest Build 121 | 15 29 31 29 34 116 121 Greatest Support 126 | 40 40 40 40 40 106 126 Greatest Overweight (x) 4 | 4 3 1 . . 1 2 Average Overweight (x) . | . . . . . . . Largest Inventory Capacity 25 | 8 15 15 15 15 25 25 Average Capacity 18 | 7 9 15 15 15 24 25 Most Carried 25 | 6 10 15 15 15 25 25 Average Carried 17 | 5 8 12 15 14 23 24 Final Capacity 25 | 8 15 15 15 15 25 25 Final Carried 25 | 6 9 15 15 15 25 17 Class Distribution -------------------- 83% | Mutant 16% | Scavenger-Mutant Dominant Class ---------------- Mutant | -10/Materials Mutant | -10/Mines Mutant | -10/Exiles Mutant | -9/Mines Scavenger-Mutant | -8/Materials Mutant | -7/Factory Resources | -11 -10 -10 -10 -9 -8 -7 ----------- Run | Yrd Mat Min Exi Min Mat Fac Matter Collected 2571 | 306 500 392 21 40 498 814 Remotely 269 | . . . . . . 269 Salvage Created 2848 | 131 633 75 . . 945 1064 Parts 152 | 15 37 9 . . 42 49 Haulers Intercepted 3 | . 2 . . . . 1 Recyclers Shooed 3 | . . . . 1 1 1 Parts Field Recycled . | . . . . . . . Retrieved Matter . | . . . . . . . Parts Self-Destructed . | . . . . . . . Prevented . | . . . . . . . Kills | -11 -10 -10 -10 -9 -8 -7 ------- Run | Yrd Mat Min Exi Min Mat Fac Combat Hostiles Destroyed 71 | . 12 12 . . 20 27 Guns 22 | . 12 1 . . 9 . Cannons 22 | . . . . . 9 13 AOE 26 | . . 11 . . 2 13 Classes Destroyed 18 | 2 6 2 . . 2 6 Worker 4 | . 1 1 . . 2 . Builder 5 | . . 1 . . . 4 Tunneler 4 | 3 . 1 . . . . Hauler 3 | . 2 . . . . 1 Recycler 5 | 1 . . . . 1 3 Operator 1 | . 1 . . . . . Watcher 3 | . 1 . . . 1 1 Swarmer 9 | . 3 3 . . 3 . Grunt 27 | . 9 . . . 11 7 Brawler 1 | . . . . . . 1 Duelist 1 | . . . . . 1 . Protector 3 | . . . . . . 3 Sentry 7 | . . . . . 5 2 Specialist 2 | . . . . . . 2 Hunter 6 | . . . . . . 6 Programmer 5 | . . . . . . 5 Heavy 1 | . . . . . . 1 Assembled 9 | . . 9 . . . . Best Kill Streak 14 | 3 5 5 . . 4 14 Combat Bots Only 10 | . 5 5 . . 4 10 Max Kills in Single Turn 6 | 1 1 2 . . 2 6 Gunslinging . | . . . . . . . Exploded 6 | . . 2 . . 2 6 Melee . | . . . . . . . Uniques/NPCs Destroyed . | . . . . . . . Combat | -11 -10 -10 -10 -9 -8 -7 -------- Run | Yrd Mat Min Exi Min Mat Fac Hostile Shots Fired 465 | . 79 16 . 2 92 276 Missed 148 | . 14 6 . . 23 105 Damage Taken 4495 | . 803 242 . 33 1075 2342 Core 401 | . 129 20 . . 72 180 Absorbed by Shields 199 | . . . . . . 199 Regen/Repaired (Parts) 110 | . . . . . . 110 Core Remaining (%) 75 | 100 . . . 40 86 . Volleys Fired 245 | 6 76 19 . . 69 75 Largest 2 | 2 2 2 . . 2 2 Hottest 131 | 40 40 70 . . 131 119 Shots Fired 447 | 12 136 22 . 2 133 142 Gun 209 | 12 136 5 . 2 54 . Cannon 212 | . . . . . 78 134 Launcher 26 | . . 17 . . 1 8 Special . | . . . . . . . Kinetic 236 | 12 136 2 . . 23 63 Thermal 185 | . . 3 . 2 109 71 Explosive 26 | . . 17 . . 1 8 Electromagnetic . | . . . . . . . Robot Hit Streak 17 | 5 17 3 . . 16 15 Robot Miss Streak 9 | 2 5 4 . 4 9 4 Penetration Max . | . . . . . . . Secondary Targets . | . . . . . . . Shots Hit Robots 296 | 7 95 6 . . 92 96 Core Hits 210 | 5 32 17 . . 50 106 Critical Kills 2 | . 1 . . . . 1 Critical Parts Destroyed 3 | . 1 . . . . 2 Critical Strikes 10 | . 2 . . . 3 5 Burn 3 | . . . . . 3 . Meltdown 1 | . . . . . . 1 Destroy 2 | . 2 . . . . . Blast 2 | . . . . . . 2 Smash 2 | . . . . . . 2 Melee Attacks 17 | . . 6 . . 5 6 Impact 17 | . . 6 . . 5 6 Slashing . | . . . . . . . Piercing . | . . . . . . . Sneak Attacks 3 | . . 2 . . . 1 Combat Hostiles . | . . . . . . . Follow-up Attacks . | . . . . . . . Damage Inflicted 9111 | 80 1116 788 . 13 1948 5166 Guns 1891 | 80 1113 12 . 12 674 . Cannons 3321 | . . . . . 1146 2175 Explosions 3484 | . . 560 . . 88 2836 Melee 307 | . . 189 . . . 118 Ramming 108 | . 3 27 . 1 40 37 Kinetic 2619 | 80 1113 . . . 311 1115 Thermal 2707 | . . 12 . 12 1509 1174 Explosive 3370 | . . 560 . . 88 2722 Electromagnetic . | . . . . . . . Impact 307 | . . 189 . . . 118 Slashing . | . . . . . . . Piercing . | . . . . . . . Highest Corruption 7 | . 2 2 2 2 . 7 Average Corruption 2 | . 2 2 2 2 . 3 Corruption Purged . | . . . . . . . Corruption Blocked . | . . . . . . . Effects 70 | . 17 18 5 9 . 21 Message Errors 22 | . 8 4 . 2 . 8 Matter Fused 14 | . 2 5 3 . . 4 Heat Flow Errors 8 | . 3 2 1 1 . 1 Energy Discharges 4 | . 1 1 1 1 . . Parts Rejected 1 | . 1 . . . . . Data Loss (minor) 12 | . . 5 . 3 . 4 Data Loss (major) 4 | . 1 . . . . 3 Misfires 4 | . 1 1 . 2 . . Weapon Failures 1 | . . . . . . 1 Overload Shots . | . . . . . . . Overflow Damage 343 | . . 131 . . 2 210 Projectiles 34 | . . . . . 2 32 Explosions 64 | . . 4 . . . 60 Melee 245 | . . 127 . . . 118 Knockbacks 16 | . . . . . . 16 Impact 1 | . . . . . . 1 Kinetic 14 | . . . . . . 14 Secondary 1 | . . . . . . 1 Self-Inflicted Damage 147 | . . 120 . . . 27 Shots 9 | . . 7 . . . 2 Rammed 20 | . 1 4 . 2 8 5 Targets Rammed 22 | . 1 5 . 2 9 5 Kicked . | . . . . . . . Crushed 2 | . . 1 . . 1 . Highest Temperature 251 | . 241 193 144 217 131 251 Average Temperature 39 | . 24 62 80 86 38 40 Received Heat Transfer 1126 | . 426 . . 9 459 232 Siege Activations . | . . . . . . . Robots Corrupted . | . . . . . . . Combat Hostiles . | . . . . . . . Parts Fried 4 | . . 3 . . . 1 Impact Corruptions 7 | . . 4 . . . 3 Robots Melted 1 | . . . . . . 1 Combat Hostiles 1 | . . . . . . 1 Parts Melted 10 | . . . . . 6 4 Heat Transferred 4971 | . . 37 . 37 3095 1802 Parts Sabotaged . | . . . . . . . Parts Stolen . | . . . . . . . Parts Stripped . | . . . . . . . Power Chain Reactions . | . . . . . . . Alert | -11 -10 -10 -10 -9 -8 -7 ------- Run | Yrd Mat Min Exi Min Mat Fac Peak Influence 525 | 20 139 100 . 61 336 525 Initial 114 | . 13 . . . . 114 Average 100 | 9 66 22 . 25 163 165 Maximum Alert Level 2 | . . . . . 1 2 Low Security (%) 82 | 100 100 100 . 100 54 76 Level 1 16 | . . . . . 45 17 Level 2 1 | . . . . . . 5 Level 3 . | . . . . . . . Level 4 . | . . . . . . . Level 5 . | . . . . . . . High Security . | . . . . . . . Max Security . | . . . . . . . Squads Dispatched 9 | . 2 . . . 1 6 Investigation 2 | . 1 . . . 1 . Extermination 1 | . . . . . . 1 Reinforcement 6 | . 1 . . . . 5 Assault . | . . . . . . . Garrison . | . . . . . . . Intercept . | . . . . . . . Searches Triggered . | . . . . . . . Construction Impeded . | . . . . . . . Haulers Reinforced . | . . . . . . . Active Scanning Responses . | . . . . . . . Cargo Convoy Interrupts 1 | . . . . . . 1 Stealth | -11 -10 -10 -10 -9 -8 -7 --------- Run | Yrd Mat Min Exi Min Mat Fac Distress Signals 5 | . 1 . . . 3 1 Communications Jammed . | . . . . . . . Distress Signals . | . . . . . . . Times Spotted 124 | . 25 17 . 2 38 42 Peak Tracking Total 8 | . 3 4 . 2 5 8 Tactical Retreats 7 | . 1 2 . . 3 1 Traps | -11 -10 -10 -10 -9 -8 -7 ------- Run | Yrd Mat Min Exi Min Mat Fac Traps Triggered 5 | . 4 . . . . 1 Indirectly . | . . . . . . . Trap Hack Attempts 82 | . 82 . . . . . Triggered . | . . . . . . . Disarmed 1 | . 1 . . . . . Reprogrammed 4 | . 4 . . . . . Reused . | . . . . . . . Traps Extracted 4 | . 4 . . . . . Installed . | . . . . . . . Triggered . | . . . . . . . Most Traps Carried 4 | . 4 4 4 4 4 4 Machines | -11 -10 -10 -10 -9 -8 -7 ---------- Run | Yrd Mat Min Exi Min Mat Fac Machines Disabled 9 | . . 2 . . 2 5 Max in Single Turn 3 | . . 1 . . 1 3 Machines Repaired . | . . . . . . . Machines Dismantled . | . . . . . . . Machines Sabotaged . | . . . . . . . Overloaded Fab Kills . | . . . . . . . Hacking | -11 -10 -10 -10 -9 -8 -7 --------- Run | Yrd Mat Min Exi Min Mat Fac Machines Accessed 25 | . 8 . 1 1 12 3 Terminals 21 | . 7 . . . 12 2 Fabricators . | . . . . . . . Repair Stations 2 | . 1 . . . . 1 Recycling Units . | . . . . . . . Scanalyzers . | . . . . . . . Garrison Access . | . . . . . . . Total Hacks 66 | . 19 . 1 1 36 9 Successful 29 | . 8 . 1 1 13 6 Failed 35 | . 10 . . . 22 3 Catastrophic 5 | . 3 . . . 1 1 Database Lockouts 2 | . 1 . . . 1 . Manual 36 | . 11 . . . 21 4 Terminals 59 | . 18 . . . 36 5 Fabricators . | . . . . . . . Repair Stations 5 | . 1 . . . . 4 Recycling Units . | . . . . . . . Scanalyzers . | . . . . . . . Garrison Access . | . . . . . . . Terminal Hacks 20 | . 6 . 1 1 10 2 Record 1 | . . . 1 . . . Part Schematic 1 | . 1 . . . . . Robot Analysis 2 | . . . . . 2 . Prototype ID Bank 2 | . 2 . . . . . Open Door 1 | . . . . 1 . . Terminal Index 1 | . . . . . 1 . Alert Level 1 | . . . . . 1 . Unreport Threat 2 | . . . . . 2 . Locate Traps 5 | . 2 . . . 1 2 Hauler Manifests 2 | . 1 . . . 1 . Zone Layout 2 | . . . . . 2 . Fabricator Hacks . | . . . . . . . Repair Station Hacks 2 | . . . . . . 2 Scan Component 1 | . . . . . . 1 Repair 1 | . . . . . . 1 Recycling Unit Hacks . | . . . . . . . Scanalyzer . | . . . . . . . Garrison Access Hacks . | . . . . . . . Unauthorized Hacks 7 | . 2 . . . 3 2 Terminals 7 | . 2 . . . 3 2 Botnet 5 | . 2 . . . 2 1 Disrupt 1 | . . . . . . 1 Operators 1 | . . . . . 1 . Fabricators . | . . . . . . . Repair Stations . | . . . . . . . Recycling Units . | . . . . . . . Scanalyzers . | . . . . . . . Garrison Access . | . . . . . . . Data Cores Recovered . | . . . . . . . Used . | . . . . . . . Hacking Detections 21 | . 8 . . . 10 3 Full Trace Events . | . . . . . . . Feedback Events . | . . . . . . . Feedback Blocked . | . . . . . . . Robot Schematics Acquired . | . . . . . . . Robots Built . | . . . . . . . Authchips . | . . . . . . . Time . | . . . . . . . Total Robot Build Rating . | . . . . . . . Part Schematics Acquired 1 | . 1 . . . . . Parts Built . | . . . . . . . Authchips . | . . . . . . . Time . | . . . . . . . Total Part Build Rating . | . . . . . . . Parts Repaired 1 | . . . . . . 1 Time 51 | . . . . . . 51 Parts Recycled . | . . . . . . . Recycled Matter . | . . . . . . . Retrieved Matter . | . . . . . . . Retrieved Components . | . . . . . . . Parts Scanalyzed . | . . . . . . . Part Schematics Acquired . | . . . . . . . Parts Damaged . | . . . . . . . Bothacking | -11 -10 -10 -10 -9 -8 -7 ------------ Run | Yrd Mat Min Exi Min Mat Fac Used RIF Installer . | . . . . . . . Robots Hacked . | . . . . . . . Non-combat . | . . . . . . . Combat . | . . . . . . . Robot Hacks Applied . | . . . . . . . Relay Couplers Released . | . . . . . . . Fabnet Peak Effective % . | . . . . . . . Robots Rewired . | . . . . . . . Allies Hacked . | . . . . . . . Hacks Repelled . | . . . . . . . Allies | -11 -10 -10 -10 -9 -8 -7 -------- Run | Yrd Mat Min Exi Min Mat Fac Total Allies 5 | . . 3 . 2 . . Largest Group 5 | . . 3 3 5 5 . Highest-Rated Group 84 | . . 40 40 84 84 . Highest-Rated Ally 31 | . . 16 16 31 31 . Total Orders 1 | . . . . . 1 . RETURN 1 | . . . . . 1 . Ally Attacks 144 | . . 11 . 6 127 . Total Damage 1414 | . . 97 . 85 1232 . Kills 26 | . . 3 . 2 21 . Allies Corrupted . | . . . . . . . Allies Melted . | . . . . . . . Intel | -11 -10 -10 -10 -9 -8 -7 ------- Run | Yrd Mat Min Exi Min Mat Fac Robot Analysis Total 2 | . . . . . 2 . Derelict Logs Recovered 2 | . . 1 . 1 . . Drone Launches 13 | . . . . 3 10 . Drone Recoveries 13 | . . . . . 13 . Exploration | -11 -10 -10 -10 -9 -8 -7 ------------- Run | Yrd Mat Min Exi Min Mat Fac Turns Passed 8451 | 158 1647 1376 498 911 2431 1430 Spaces Moved 3953 | 78 740 733 311 557 915 619 Core 20 | 19 1 . . . . . Treads 3933 | 59 739 733 311 557 915 619 Legs . | . . . . . . . Wheels . | . . . . . . . Hover . | . . . . . . . Flight . | . . . . . . . Fastest Speed 50 | 50 160 160 160 160 156 159 Average Speed 178 | 152 165 175 160 160 221 161 Slowest Speed 325 | 250 240 240 160 160 240 325 Overloaded Moves . | . . . . . . . Propulsion Burnouts . | . . . . . . . Robots Hopped . | . . . . . . . Cave-ins Triggered . | . . . . . . . Exploration Rate (%) 69 | 8 98 97 77 99 82 25 Regions Visited 6 Branch Regions 3 Pre-discovered Areas 1 | . . . 1 . . . Known Exits Taken 1 | . . . . . 1 . Unknown Exits Taken 5 | 1 1 1 1 1 . . Scrap Searched 2 | . . 1 . 1 . . Spaces Dug 23 | . . 14 . . 5 4 Terrain Destroyed 281 | . . 112 . . 15 154 Melee 10 | . . 2 . . 4 4 Projectile 5 | . . . . . 5 . AOE 266 | . . 110 . . 6 150 Terrain Rammed . | . . . . . . . Walls Destroyed . | . . . . . . . Machines Disabled . | . . . . . . . Actions | -11 -10 -10 -10 -9 -8 -7 --------- Run | Yrd Mat Min Exi Min Mat Fac Total 4881 | 102 1029 785 312 579 1185 889 Wait 266 | 6 85 5 . 7 73 90 Move 3947 | 77 739 732 310 556 914 619 Hop . | . . . . . . . Pick Up 85 | 6 12 7 1 5 36 18 Fast Attach 23 | 7 6 . . . 3 7 Attach 30 | . 4 2 . 1 10 13 Detach 9 | . . 1 . . 3 5 Swap 77 | . 14 7 . 3 26 27 Drop 78 | . 10 1 1 5 37 24 Fire 245 | 6 76 19 . . 69 75 Melee 17 | . . 6 . . 5 6 Ram . | . . . . . . . Kick . | . . . . . . . Crush 22 | . 1 5 . 2 9 5 Escape Stasis . | . . . . . . . Rewire . | . . . . . . . Trap 82 | . 82 . . . . . Miscellaneous . | . . . . . . . Route ------- -11/Scrapyard -10/Materials (discovered 5 exits: [*Mat x3] / [*Min] / [*Sub]) -10/Mines (discovered 3 exits: [*Mat x2] / *Exi) -10/Exiles -9/Mines (discovered 2 exits: *Mat x2) -8/Materials (discovered 3 exits: *Fac x3) -7/Factory (discovered 1 exit: *Low) History --------- Turn | Location | Event 29 | -11/Scrapyard | Discovered new exit (range 15) 159 | -11/Scrapyard | Entered Materials 304 | -10/Materials | Build established: Mutant 319 | -10/Materials | Discovered new exit (range 12) 335 | -10/Materials | Central database locked down 473 | -10/Materials | Discovered new exit (range 16) 763 | -10/Materials | Discovered new exit (range 5) 1184 | -10/Materials | Discovered new exit (range 12) 1216 | -10/Materials | Core integrity fell below 50% 1635 | -10/Materials | Discovered new exit (range 9) 1806 | -10/Materials | Entered Mines 1871 | -10/Mines | Found a hidden stash of uninstalled traps 2089 | -10/Mines | Learned location of 1 exit from Materials 2119 | -10/Mines | Assembled infested the area 2320 | -10/Mines | Discovered new exit (range 13) 2337 | -10/Mines | Received a Rocket Launcher from a helpful Derelict 2350 | -10/Mines | Discovered new exit (range 9) 2608 | -10/Mines | Assisted by bots powering up and referring to "LRC-V3" 2706 | -10/Mines | Deemed a non-threat by the Exiles lab entrance 2706 | -10/Mines | Discovered new exit (range 5) 3182 | -10/Mines | Entered Exiles 3182 | -10/Exiles | Accompanied by 3 allies 3222 | -10/Exiles | Met 8R-AWN 3250 | -10/Exiles | Met EX-HEX 3315 | -10/Exiles | Met EX-DEC 3331 | -10/Exiles | Learned location of Zion (-7) 3399 | -10/Exiles | Visited The Gauntlet 3659 | -10/Exiles | Discovered new exit (range 14) 3680 | -10/Exiles | Entered Mines 3680 | -9/Mines | Accompanied by 3 allies 3787 | -9/Mines | Discovered new exit (range 13) 3835 | -9/Mines | Discovered new exit (range 10) 4058 | -9/Mines | Found the Drone Emporium 4068 | -9/Mines | Found Prototype Device 4069 | -9/Mines | Identified Thief Drone Bay 4258 | -9/Mines | Learned location of 1 exit from Lower Caves 4591 | -9/Mines | Entered Materials 4591 | -8/Materials | Accompanied by 8 allies 4591 | -8/Materials | Evolved 4 slots: Propulsion x2, Utility x2 4592 | -8/Materials | Identified exit to Factory 4596 | -8/Materials | Led the pair of lost Derelicts to an unsafe place 4625 | -8/Materials | Central database locked down 4893 | -8/Materials | Build established: Scavenger-Mutant 5484 | -8/Materials | Discovered exit to Factory (range 13) 6260 | -8/Materials | Build established: Mutant 6402 | -8/Materials | Lost 3 parts (1p2u) 6465 | -8/Materials | Discovered exit to Factory (range 9) 7022 | -8/Materials | Entered Factory 7022 | -7/Factory | Evolved 2 slots: Propulsion x1, Utility x1 8110 | -7/Factory | Found Prototype Launcher 8110 | -7/Factory | Identified Rocket Array 8113 | -7/Factory | Found Rocket Array 8115 | -7/Factory | Found Rocket Array 8223 | -7/Factory | Discovered new exit (range 15) 8306 | -7/Factory | Identified exit to Lower Caves 8362 | -7/Factory | Cargo convoy interrupted 8377 | -7/Factory | Repaired Adv. Beam Cannon? 8391 | -7/Factory | Destroyed 10 combat bots 8452 | -7/Factory | Self-destructed Last Messages --------------- 08431_ U-05 Engineer lays Concrete. 08433_ Extracted 17 energy. 08434_ U-05 Engineer lays Concrete. 08434_ Acquired Com. Battery. 08435_ System corrupted: Component data lost. 08435_ U-05 Engineer lays Concrete. 08435_ Dropped Lrg. Matter Pod. 08436_ Extracted 150 matter. 08436_ Acquired Lrg. Matter Pod. 08436_ U-05 Engineer lays Concrete. 08438_ U-05 Engineer builds a Wall. 08439_ Acquired Med. Treads. 08442_ U-05 Engineer builds a Wall. 08444_ Acquired 58 matter. 08444_ U-05 Engineer builds a Wall. 08447_ U-05 Engineer lays Concrete. 08450_ System corrupted: Substantial component data lost. 08450_ U-05 Engineer lays Concrete. 08450_ Acquired Wheel. 08451_ U-05 Engineer lays Concrete. Map ----- +----------------------------------------------------+ | ?????????????????????????????????????????????????? | | ?????????????????????????????????????????????????? | | ???????????????? ????????????????????????????????? | | ???????????????? ????????????????????????????????? | | ???????????????? ????????????????????????????????? | | ???????????????? ????????????????????????????????? | | ???????????????? #???????????????????????????????? | | ???????????????? #??????? ?????????????????????? | | ???????????????? #??????? ?#???????????????????? | | ???????????????# #??????? # ???????????????????? | | ???????????????# #??????# ?????????????????? | | ???????????????# #??????# ?????????????????? | | ???????????????# #?????? ?????????????????? | | ?????????????### ######?T ?????????????????? | | ?????????????# # ### ?????????????????? | | ?????????????# # # ??????????????????? | | ???#######???# > # ##u #+#????#???????????? | | ???# #???# [ # # #### #???????????? | | ???# """ #???# ## # ###?????????? | | ???# "R" #?#### ##?# # ??????????? | | ???# " " ###### #??# """"" #???????????? | | ???# # #??# # """"" #???????????? | | ???# "" + #???## u "" ggg #???????????? | | ???# "" # ###?##! #???????????? | | ???# """ # ####### ! a#???????????? | | ???# """ # !|@ T + ??????? | | ???# """ + u # ????????? | | ???# ####### +?????????? | | ???#= #?# ### ######?????????? | | ???####+##?##### t ; ????????????? | | ??????# #??# ## ;##;#;#####^# ??????????? | | ??????# ######## #?#####???? +?///??????????? | | ??????# % #???????????#??//??????????? | | ??????# #####+## #??????????????????????????? | | ??????# # * # ! #?????????????????????????? | | ??????# # ##?????????????????????????? | | ##???? # ! ??????????????????????????? | | ????? # #??????????????????????????? | | ?????? ???????? ????????????????? | | ??##### #????"??? "??? ??????????? | | # # ??#?"??? "??? ??????????? | | %""" + #""" ##??# "??" "??" # # | | """ #### # " #???# """" ""?" ########### | | ??"" #??? #""" [ # + """" """" # | | ???? #????#""" # ####### """" """" =# | | ???????????#""" * # #?????# """" """" # """ """ | | ???????????# + #?##### # """ """ | | ???????????######## #?# # # """ ""?? | | ??????????????????# #?# = # ???? | | ??????????????#???# #?# ####+###### | +----------------------------------------------------+ Best States ------------- Heat Dissipation 61 Energy Generation 16 Energy Capacity 290 Matter Stores 300 Matter Capacity 300 Sight Range 16 Robot Scan Range 15 Terrain Scan Density 10 Armor Coverage 825 Resistance: EM 15 Evasion (%) 40 Target Analysis 5 Recoil Reduction 5 Trap Extractor Capacity 4 Item Schematics ----------------- Huge Storage Unit | -10/Materials | Hacked Robot Schematics ------------------ None Fabricated ------------ Nothing Alien Tech Used ----------------- None Achievements -------------- Hehehe Challenges ------------ None Game ------ Seed HoverTargetPerforator Manual? 0 Play Time 01:28:46 Cumulative 311.6 hours Start 2024.07.16 @ 08:37:16 End 2024.07.16 @ 10:13:44 Sessions 1 Manual Loads 0 Difficulty Rogue Special Mode None Game No. 184 Rogue 184 Adventurer 0 Explorer 0 Win Type - Total 2 Types 2/0/0/0/0/0/0/0/0 Lore% 54 Gallery% 65 Achievement% 41 Wizard Run 0 Options --------- Layout 0 ASCII 0 Keyboard 1 Movement Numpad Keybinds 0 Fullscreen 2 Font 18/SmallcapsGlow Map View 76x50 Zoom Use 0% Tactical HUD 1 Map Filters NONE Filters NONE Steam 1 RUN: 7ee27246-d1d7-4cb8-8b11-d1d66bc0fdfc